[Event "34rd NATO Championship 2024"]
[Site "Rhodes"]
[Date "2024.10.24"]
[Round "5.23"]
[White "Mautone, Valerio"]
[Black "Ivbulis, Martins"]
[Result "0-1"]
[ECO "A04"]
[WhiteElo "2117"]
[BlackElo "1891"]
[Annotator "RC"]
[PlyCount "84"]
[EventDate "2024.09.18"]
[EventType "swiss"]
[EventCountry "GRE"]
[SourceTitle "playchess.com"]
[Source "ChessBase"]
[SourceQuality "1"]
[TimeControl "5400+30"]

1. e4 {[%emt 0:00:03]} c5 {[%emt 0:00:09]} 2. Nf3 {[%emt 0:00:06]} Nc6 {[%emt 0:00:04]} 3. d3 {[%emt 0:00:10]} g6 {[%emt 0:00:13]} 4. g3 {[%emt 0:00:14]} Bg7 {[%emt 0:00:07]} 5. Bg2 {[%emt 0:00:24]} e6 {[%emt 0:01:44]} 6. O-O {[%emt 0:00:34]} Nge7 {[%emt 0:00:09]} 7. Nbd2 {[%emt 0:02:11]} O-O {[%emt 0:00:27]} 8. Re1 {[%emt 0:02:23]} d6 {[%emt 0:01:15]} 9. c3 {[%emt 0:02:50]} b5 {[%emt 0:02:54]} 10. Nf1 {[%emt 0:02:02]} b4 {[%emt 0:03:50]} 11. d4 {[%emt 0:06:25]} bxc3 {[%emt 0:05:10]} 12. bxc3 {[%emt 0:00:16]} Qa5 {[%emt 0:01:44]} 13. Bd2 {[%emt 0:08:25]} Rb8 {[%emt 0:07:03]} 14. a3 {[%emt 0:18:58]} Ba6 {[%emt 0:14:16]} 15. Qc1 {[%emt 0:08:06]} Rfc8 {[%emt 0:03:20]} 16. Bh6 {[%emt 0:04:54]} cxd4 {[%emt 0:03:23]} 17. Bxg7 {[%emt 0:03:43]} Kxg7 {[%emt 0:00:08]} 18. Qf4 {[%emt 0:05:55]} e5 {[%emt 0:03:10]} 19. Qh4 {[%emt 0:02:45]} Bxf1 {[%emt 0:02:06]} 20. Rxf1 {[%emt 0:02:06]} Qxc3 {[%emt 0:02:40]} 21. h3 {[%emt 0:05:03]} Ng8 {[%emt 0:01:36]} 22. Nh2 {[%emt 0:03:29]} Rb3 {[%emt 0:03:57]} 23. Rac1 {[%emt 0:02:36]} Qd2 {[%emt 0:02:22]} 24. Nf3 {[%emt 0:02:34]} Qe2 {[%emt 0:00:20]} 25. Qg4 {[%emt 0:01:35]} Qa6 {[%emt 0:03:21]} 26. Qd7 {[%emt 0:00:57]} Nce7 {[%emt 0:04:32]} 27. Rxc8 {[%emt 0:06:08]} Nxc8 {[%emt 0:00:15]} 28. Ng5 {[%emt 0:00:50]} Qb7 {[%emt 0:00:10]} 29. Qe8 {[%emt 0:02:14]} Qe7 {[%emt 0:02:10]} 30. Qa4 {[%emt 0:00:53]} Rb2 {[%emt 0:00:54]} 31. h4 {[%emt 0:00:33]} Nb6 {[%emt 0:03:29]} 32. Qa6 {[%emt 0:00:36]} Nf6 {[%emt 0:00:46]} 33. f4 {[%emt 0:01:43]} h6 {[%emt 0:08:01]} 34. Nh3 {[%emt 0:00:58]} Ng4 {[%emt 0:00:36]} 35. f5 {[%emt 0:00:40]} Qc7 {[%emt 0:02:11]} 36. fxg6 {[%emt 0:02:08]} Qc2 {[%emt 0:01:25]} 37. Rxf7+ {[%emt 0:01:41]} Kxg6 {[%emt 0:00:08]} 38. Rg7+ {[%emt 0:01:37]} Kxg7 {[%emt 0:00:12]} 39. Qb7+ {[%emt 0:00:05]} Kg6 {[%emt 0:00:17]} 40. h5+ {[%emt 0:00:18]} Kf6 {[%emt 0:00:19]} 41. Nf4 {[%emt 0:01:19]} Rb1+ {[%emt 0:00:23]} 42. Bf1 {[%emt 0:00:10]} Qh2# {[%emt 0:00:11]} 0-1

[Event "34rd NATO Championship 2024"]
[Site "Rhodes"]
[Date "2024.10.24"]
[Round "5.24"]
[White "Kruit, Erik"]
[Black "Mestek, Igor"]
[Result "1/2-1/2"]
[ECO "C35"]
[WhiteElo "1899"]
[BlackElo "2080"]
[Annotator "RC"]
[PlyCount "70"]
[EventDate "2024.09.18"]
[EventType "swiss"]
[EventCountry "GRE"]
[SourceTitle "playchess.com"]
[Source "ChessBase"]
[SourceQuality "1"]
[TimeControl "5400+30"]

1. e4 {[%emt 0:00:10]} e5 {[%emt 0:00:21]} 2. f4 {[%emt 0:00:28]} exf4 {[%emt 0:00:51]} 3. Nf3 {[%emt 0:00:08]} Be7 {[%emt 0:01:10]} 4. Bc4 {[%emt 0:00:32]} Nf6 {[%emt 0:00:33]} 5. Nc3 {[%emt 0:00:35]} Nxe4 {[%emt 0:01:00]} 6. Bxf7+ {[%emt 0:00:34]} Kxf7 {[%emt 0:00:10]} 7. Nxe4 {[%emt 0:00:07]} d5 {[%emt 0:00:28]} 8. Nf2 {[%emt 0:00:10]} Nc6 {[%emt 0:07:51]} 9. d4 {[%emt 0:00:22]} Bd6 {[%emt 0:03:03]} 10. O-O {[%emt 0:00:17]} Rf8 {[%emt 0:00:23]} 11. Nd3 {[%emt 0:02:18]} Kg8 {[%emt 0:00:17]} 12. c3 {[%emt 0:01:34]} Rf5 {[%emt 0:06:42]} 13. b4 {[%emt 0:06:25]} Qf6 {[%emt 0:05:55]} 14. a4 {[%emt 0:02:43]} g5 {[%emt 0:03:51]} 15. Qe1 {[%emt 0:04:13]} Bd7 {[%emt 0:05:23]} 16. Ra2 {[%emt 0:01:12]} Rf8 {[%emt 0:04:59]} 17. Re2 {[%emt 0:01:12]} Ne7 {[%emt 0:05:51]} 18. b5 {[%emt 0:01:51]} Bc8 {[%emt 0:03:00]} 19. Nde5 {[%emt 0:05:47]} Qg7 {[%emt 0:00:45]} 20. c4 {[%emt 0:01:03]} dxc4 {[%emt 0:13:54]} 21. Nxc4 {[%emt 0:05:05]} Nd5 {[%emt 0:00:06]} 22. Re8 {[%emt 0:01:53]} Bd7 {[%emt 0:02:43]} 23. Rxf8+ {[%emt 0:00:47]} Bxf8 {[%emt 0:01:13]} 24. Nfe5 {[%emt 0:01:48]} Nb6 {[%emt 0:05:27]} 25. Nxb6 {[%emt 0:04:40]} axb6 {[%emt 0:00:56]} 26. Qe4 {[%emt 0:01:03]} c6 {[%emt 0:06:46]} 27. bxc6 {[%emt 0:02:47]} bxc6 {[%emt 0:00:01]} 28. Nxc6 {[%emt 0:00:45]} Qf7 {[%emt 0:07:32]} 29. Ne5 {[%emt 0:09:41]} Qe6 {[%emt 0:01:17]} 30. Qa8 {[%emt 0:01:01]} Qe8 {[%emt 0:06:48]} 31. Qb7 {[%emt 0:06:47]} Bxa4 {[%emt 0:05:29]} 32. Qxb6 {[%emt 0:11:08]} Qc8 {[%emt 0:00:04]} 33. Qb2 {[%emt 0:02:14]} Qc2 {[%emt 0:00:15]} 34. Qxc2 {[%emt 0:00:59]} Bxc2 {[%emt 0:00:05]} 35. Bb2 {[%emt 0:00:09]} Bd6 {[%emt 0:00:48]} 1/2-1/2

[Event "34rd NATO Championship 2024"]
[Site "Rhodes"]
[Date "2024.10.24"]
[Round "5.25"]
[White "Dino, Giuseppe"]
[Black "Schott, Guido"]
[Result "1-0"]
[ECO "A87"]
[WhiteElo "1884"]
[BlackElo "2059"]
[Annotator "RC"]
[PlyCount "73"]
[EventDate "2024.09.18"]
[EventType "swiss"]
[EventCountry "GRE"]
[SourceTitle "playchess.com"]
[Source "ChessBase"]
[SourceQuality "1"]
[TimeControl "5400+30"]

1. g3 {[%emt 0:00:04]} f5 {[%emt 0:00:18]} 2. Nf3 {[%emt 0:01:14]} Nf6 {[%emt 0:00:22]} 3. Bg2 {[%emt 0:00:14]} g6 {[%emt 0:00:53]} 4. d4 {[%emt 0:00:31]} Bg7 {[%emt 0:00:15]} 5. c4 {[%emt 0:00:12]} O-O {[%emt 0:00:22]} 6. O-O {[%emt 0:00:15]} d6 {[%emt 0:00:21]} 7. Nc3 {[%emt 0:00:19]} Qe8 {[%emt 0:03:10]} 8. Qb3 {[%emt 0:04:25]} c6 {[%emt 0:03:22]} 9. Bf4 {[%emt 0:07:26]} Nbd7 {[%emt 0:12:42]} 10. c5+ {[%emt 0:20:03]} d5 {[%emt 0:00:18]} 11. Ne5 {[%emt 0:00:12]} e6 {[%emt 0:12:25]} 12. Nf3 {[%emt 0:16:34]} h6 {[%emt 0:08:07]} 13. h4 {[%emt 0:15:04]} Ng4 {[%emt 0:07:09]} 14. Bd6 {[%emt 0:13:40]} Rf7 {[%emt 0:01:26]} 15. Bh3 {[%emt 0:04:53]} e5 {[%emt 0:04:09]} 16. e3 {[%emt 0:00:21]} e4 {[%emt 0:01:56]} 17. Nd2 {[%emt 0:03:16]} Ndf6 {[%emt 0:01:22]} 18. Ne2 {[%emt 0:01:20]} Kh7 {[%emt 0:15:08]} 19. a4 {[%emt 0:00:51]} Be6 {[%emt 0:01:54]} 20. Bf4 {[%emt 0:03:00]} Nh5 {[%emt 0:06:43]} 21. Bxg4 {[%emt 0:01:49]} fxg4 {[%emt 0:00:58]} 22. Kg2 {[%emt 0:00:58]} Qd7 {[%emt 0:05:54]} 23. Qa2 {[%emt 0:05:19]} Raf8 {[%emt 0:00:47]} 24. b4 {[%emt 0:00:00]} Bf6 {[%emt 0:02:39]} 25. Bd6 {[%emt 0:00:00]} Rg8 {[%emt 0:00:51]} 26. Rh1 {[%emt 0:00:00]} Bd8 {[%emt 0:01:07]} 27. Raf1 {[%emt 0:00:00]} Rf5 {[%emt 0:01:24]} 28. Rh2 {[%emt 0:00:00]} Rg7 {[%emt 0:00:28]} 29. Nf4 {[%emt 0:00:20]} Nxf4+ {[%emt 0:00:48]} 30. Bxf4 {[%emt 0:00:02]} Rgf7 {[%emt 0:00:39]} 31. b5 {[%emt 0:00:25]} cxb5 {[%emt 0:01:49]} 32. axb5 {[%emt 0:00:01]} Qxb5 {[%emt 0:00:12]} 33. Nxe4 {[%emt 0:00:01]} dxe4 {[%emt 0:01:07]} 34. Qxe6 {[%emt 0:00:01]} Qd3 {[%emt 0:00:35]} 35. h5 {[%emt 0:01:39]} g5 {[%emt 0:03:02]} 36. Qg6+ {[%emt 0:00:03]} Kh8 {[%emt 0:00:17]} 37. Be5+ {[%emt 0:00:13]} 1-0

[Event "34rd NATO Championship 2024"]
[Site "Rhodes"]
[Date "2024.10.24"]
[Round "5.26"]
[White "Flaata, Alexander R."]
[Black "Farrell, John"]
[Result "1-0"]
[ECO "C27"]
[WhiteElo "2040"]
[BlackElo "1898"]
[Annotator "RC"]
[PlyCount "55"]
[EventDate "2024.09.18"]
[EventType "swiss"]
[EventCountry "GRE"]
[SourceTitle "playchess.com"]
[Source "ChessBase"]
[SourceQuality "1"]
[TimeControl "5400+30"]

1. e4 {[%emt 0:00:21]} e5 {[%emt 0:00:10]} 2. Nc3 {[%emt 0:00:21]} Nf6 {[%emt 0:00:19]} 3. Bc4 {[%emt 0:00:17]} Bb4 {[%emt 0:01:25]} 4. Nge2 {[%emt 0:01:17]} O-O {[%emt 0:00:13]} 5. O-O {[%emt 0:00:26]} c6 {[%emt 0:00:36]} 6. d4 {[%emt 0:04:39]} d6 {[%emt 0:10:56]} 7. Bg5 {[%emt 0:02:16]} h6 {[%emt 0:00:10]} 8. Bh4 {[%emt 0:00:40]} Nbd7 {[%emt 0:01:05]} 9. a3 {[%emt 0:01:22]} Ba5 {[%emt 0:00:40]} 10. b4 {[%emt 0:01:16]} Bb6 {[%emt 0:00:46]} 11. d5 {[%emt 0:04:59]} Qc7 {[%emt 0:06:52]} 12. Qd3 {[%emt 0:10:45]} Re8 {[%emt 0:01:57]} 13. Rad1 {[%emt 0:02:57]} Bd4 {[%emt 0:00:38]} 14. dxc6 {[%emt 0:06:13]} bxc6 {[%emt 0:04:00]} 15. Nxd4 {[%emt 0:00:41]} exd4 {[%emt 0:00:18]} 16. Qxd4 {[%emt 0:00:28]} d5 {[%emt 0:05:02]} 17. exd5 {[%emt 0:06:20]} cxd5 {[%emt 0:01:12]} 18. Nxd5 {[%emt 0:00:34]} Qe5 {[%emt 0:05:06]} 19. Nxf6+ {[%emt 0:01:22]} gxf6 {[%emt 0:01:11]} 20. Qg4+ {[%emt 0:03:11]} Kf8 {[%emt 0:01:42]} 21. Bg3 {[%emt 0:04:16]} Nb6 {[%emt 0:00:23]} 22. Qf3 {[%emt 0:03:21]} Qg5 {[%emt 0:01:55]} 23. Rd4 {[%emt 0:08:24]} f5 {[%emt 0:01:37]} 24. Bf4 {[%emt 0:02:57]} Qg6 {[%emt 0:02:02]} 25. Bb5 {[%emt 0:01:10]} Re4 {[%emt 0:01:48]} 26. Rd8+ {[%emt 0:01:38]} Kg7 {[%emt 0:00:38]} 27. Qc3+ {[%emt 0:00:51]} Qf6 {[%emt 0:01:58]} 28. Bxh6+ {[%emt 0:31:28]} 1-0

[Event "34rd NATO Championship 2024"]
[Site "Rhodes"]
[Date "2024.10.24"]
[Round "5.27"]
[White "Hof - Van Run, Rieke"]
[Black "Heran-Boily, Samuel"]
[Result "1-0"]
[ECO "C00"]
[WhiteElo "2038"]
[BlackElo "1898"]
[Annotator "RC"]
[PlyCount "115"]
[EventDate "2024.09.18"]
[EventType "swiss"]
[EventCountry "GRE"]
[SourceTitle "playchess.com"]
[Source "ChessBase"]
[SourceQuality "1"]
[TimeControl "5400+30"]

1. e4 {[%emt 0:00:06]} e6 {[%emt 0:00:04]} 2. Nf3 {[%emt 0:00:21]} d5 {[%emt 0:00:07]} 3. Qe2 {[%emt 0:01:57]} dxe4 {[%emt 0:01:43]} 4. Qxe4 {[%emt 0:00:09]} Nf6 {[%emt 0:00:14]} 5. Qh4 {[%emt 0:05:53]} c5 {[%emt 0:03:32]} 6. d4 {[%emt 0:17:39]} Nc6 {[%emt 0:12:43]} 7. dxc5 {[%emt 0:16:28]} Bxc5 {[%emt 0:01:45]} 8. a3 {[%emt 0:00:24]} Nd4 {[%emt 0:21:20]} 9. Nxd4 {[%emt 0:01:11]} Qxd4 {[%emt 0:00:47]} 10. Qxd4 {[%emt 0:01:05]} Bxd4 {[%emt 0:00:06]} 11. Bb5+ {[%emt 0:02:42]} Bd7 {[%emt 0:00:33]} 12. Bxd7+ {[%emt 0:00:19]} Nxd7 {[%emt 0:05:25]} 13. Ke2 {[%emt 0:00:20]} O-O-O {[%emt 0:02:28]} 14. Nd2 {[%emt 0:05:30]} f5 {[%emt 0:08:48]} 15. Nf3 {[%emt 0:00:31]} Bf6 {[%emt 0:00:33]} 16. c3 {[%emt 0:02:44]} e5 {[%emt 0:01:59]} 17. g3 {[%emt 0:12:19]} h6 {[%emt 0:03:11]} 18. h4 {[%emt 0:03:33]} b6 {[%emt 0:02:59]} 19. Be3 {[%emt 0:00:22]} Nc5 {[%emt 0:04:58]} 20. Bxc5 {[%emt 0:01:05]} bxc5 {[%emt 0:00:11]} 21. Rad1 {[%emt 0:02:04]} Kc7 {[%emt 0:01:37]} 22. Nd2 {[%emt 0:03:50]} Rd5 {[%emt 0:04:41]} 23. Nc4 {[%emt 0:01:50]} Rxd1 {[%emt 0:02:10]} 24. Rxd1 {[%emt 0:02:44]} Rb8 {[%emt 0:11:03]} 25. Rd2 {[%emt 0:00:57]} a6 {[%emt 0:04:54]} 26. Rd5 {[%emt 0:04:46]} Kc6 {[%emt 0:00:57]} 27. Rd6+ {[%emt 0:00:24]} Kb7 {[%emt 0:00:52]} 28. Rb6+ {[%emt 0:02:36]} Ka7 {[%emt 0:00:27]} 29. Rc6 {[%emt 0:00:06]} f4 {[%emt 0:02:37]} 30. Rxc5 {[%emt 0:00:52]} g5 {[%emt 0:01:16]} 31. Rc6 {[%emt 0:02:11]} fxg3 {[%emt 0:00:26]} 32. fxg3 {[%emt 0:00:13]} Rf8 {[%emt 0:01:16]} 33. h5 {[%emt 0:01:12]} g4 {[%emt 0:00:04]} 34. Ne3 {[%emt 0:00:33]} Bg5 {[%emt 0:00:43]} 35. Nxg4 {[%emt 0:00:33]} Bc1 {[%emt 0:00:45]} 36. b4 {[%emt 0:00:26]} Rf5 {[%emt 0:00:25]} 37. Nf6 {[%emt 0:02:13]} Bxa3 {[%emt 0:00:25]} 38. g4 {[%emt 0:00:29]} Rf4 {[%emt 0:00:38]} 39. g5 {[%emt 0:00:56]} hxg5 {[%emt 0:00:29]} 40. h6 {[%emt 0:00:03]} Rh4 {[%emt 0:00:45]} 41. h7 {[%emt 0:00:27]} Bb2 {[%emt 0:00:23]} 42. Kd2 {[%emt 0:01:30]} e4 {[%emt 0:00:31]} 43. Rc8 {[%emt 0:01:34]} Rh2+ {[%emt 0:00:30]} 44. Ke3 {[%emt 0:00:31]} Rh3+ {[%emt 0:00:39]} 45. Kxe4 {[%emt 0:00:11]} Kb7 {[%emt 0:00:29]} 46. h8=Q {[%emt 0:01:15]} Rxh8 {[%emt 0:00:05]} 47. Rxh8 {[%emt 0:00:04]} Bxc3 {[%emt 0:00:07]} 48. Rh7+ {[%emt 0:00:01]} Kc6 {[%emt 0:00:28]} 49. Nd5 {[%emt 0:00:36]} Bd2 {[%emt 0:00:07]} 50. Kd4 {[%emt 0:00:34]} a5 {[%emt 0:00:55]} 51. Rh6+ {[%emt 0:00:59]} Kb5 {[%emt 0:01:14]} 52. Rb6+ {[%emt 0:00:14]} Ka4 {[%emt 0:00:06]} 53. Kc4 {[%emt 0:00:13]} g4 {[%emt 0:00:37]} 54. bxa5 {[%emt 0:00:51]} Kxa5 {[%emt 0:00:23]} 55. Rg6 {[%emt 0:00:13]} Be1 {[%emt 0:00:44]} 56. Nc7 {[%emt 0:00:07]} Ka4 {[%emt 0:00:20]} 57. Ra6+ {[%emt 0:00:17]} Ba5 {[%emt 0:00:06]} 58. Nd5 {[%emt 0:00:03]} 1-0

[Event "34rd NATO Championship 2024"]
[Site "Rhodes"]
[Date "2024.10.24"]
[Round "5.28"]
[White "Wells, Daniel J"]
[Black "Rosseel, Kimball"]
[Result "1-0"]
[ECO "B09"]
[WhiteElo "2036"]
[BlackElo "1896"]
[Annotator "RC"]
[PlyCount "59"]
[EventDate "2024.09.18"]
[EventType "swiss"]
[EventCountry "GRE"]
[SourceTitle "playchess.com"]
[Source "ChessBase"]
[SourceQuality "1"]
[TimeControl "5400+30"]

1. d4 {[%emt 0:00:03]} d6 {[%emt 0:00:08]} 2. e4 {[%emt 0:00:16]} Nf6 {[%emt 0:00:55]} 3. Nc3 {[%emt 0:00:43]} g6 {[%emt 0:01:01]} 4. f4 {[%emt 0:01:42]} Bg7 {[%emt 0:00:30]} 5. Nf3 {[%emt 0:00:18]} O-O {[%emt 0:02:52]} 6. Bd3 {[%emt 0:00:46]} Bg4 {[%emt 0:03:18]} 7. h3 {[%emt 0:03:02]} Bxf3 {[%emt 0:02:21]} 8. Qxf3 {[%emt 0:02:12]} Nc6 {[%emt 0:04:11]} 9. Be3 {[%emt 0:05:07]} e5 {[%emt 0:05:01]} 10. dxe5 {[%emt 0:01:29]} dxe5 {[%emt 0:00:46]} 11. f5 {[%emt 0:01:21]} Nd4 {[%emt 0:02:53]} 12. Qf2 {[%emt 0:02:33]} c5 {[%emt 0:02:36]} 13. O-O {[%emt 0:05:39]} a6 {[%emt 0:04:08]} 14. g4 {[%emt 0:17:36]} h6 {[%emt 0:02:52]} 15. g5 {[%emt 0:05:43]} hxg5 {[%emt 0:04:47]} 16. Bxg5 {[%emt 0:02:46]} Qd6 {[%emt 0:00:45]} 17. a4 {[%emt 0:10:53]} Nh7 {[%emt 0:06:08]} 18. h4 {[%emt 0:06:18]} Rab8 {[%emt 0:09:00]} 19. f6 {[%emt 0:03:19]} Bh8 {[%emt 0:04:10]} 20. Nd5 {[%emt 0:01:41]} Bxf6 {[%emt 0:09:52]} 21. Bxf6 {[%emt 0:02:52]} Rbe8 {[%emt 0:04:45]} 22. Rae1 {[%emt 0:05:00]} Re6 {[%emt 0:05:21]} 23. Re3 {[%emt 0:02:30]} Nxf6 {[%emt 0:00:54]} 24. Nxf6+ {[%emt 0:00:15]} Kg7 {[%emt 0:00:02]} 25. h5 {[%emt 0:06:49]} g5 {[%emt 0:03:45]} 26. Ng4 {[%emt 0:01:54]} Qd7 {[%emt 0:06:14]} 27. h6+ {[%emt 0:01:05]} Kg8 {[%emt 0:07:20]} 28. Qf6 {[%emt 0:02:37]} Rxf6 {[%emt 0:01:01]} 29. Nxf6+ {[%emt 0:00:06]} Kh8 {[%emt 0:00:09]} 30. Nxd7 {[%emt 0:00:04]} 1-0

[Event "34rd NATO Championship 2024"]
[Site "Rhodes"]
[Date "2024.10.24"]
[Round "5.29"]
[White "Risk, Gregory"]
[Black "Van Drie, Rik"]
[Result "1/2-1/2"]
[ECO "B36"]
[WhiteElo "1862"]
[BlackElo "2013"]
[Annotator "RC"]
[PlyCount "37"]
[EventDate "2024.09.18"]
[EventType "swiss"]
[EventCountry "GRE"]
[SourceTitle "playchess.com"]
[Source "ChessBase"]
[SourceQuality "1"]
[TimeControl "5400+30"]

1. Nf3 {[%emt 0:00:05]} c5 {[%emt 0:00:15]} 2. c4 {[%emt 0:00:21]} Nc6 {[%emt 0:01:19]} 3. Nc3 {[%emt 0:00:33]} Nf6 {[%emt 0:00:30]} 4. d4 {[%emt 0:01:11]} cxd4 {[%emt 0:00:36]} 5. Nxd4 {[%emt 0:00:06]} g6 {[%emt 0:01:27]} 6. e4 {[%emt 0:00:38]} d6 {[%emt 0:01:19]} 7. Be2 {[%emt 0:00:21]} Nxd4 {[%emt 0:02:18]} 8. Qxd4 {[%emt 0:00:05]} Bg7 {[%emt 0:00:14]} 9. Be3 {[%emt 0:01:48]} O-O {[%emt 0:04:02]} 10. Qd2 {[%emt 0:00:10]} Ng4 {[%emt 0:07:49]} 11. Bxg4 {[%emt 0:03:32]} Bxg4 {[%emt 0:00:12]} 12. Bh6 {[%emt 0:05:23]} Bxh6 {[%emt 0:02:37]} 13. Qxh6 {[%emt 0:00:47]} Rc8 {[%emt 0:03:04]} 14. b3 {[%emt 0:12:40]} Qa5 {[%emt 0:06:06]} 15. Rc1 {[%emt 0:00:27]} Bd7 {[%emt 0:09:29]} 16. O-O {[%emt 0:02:52]} Bc6 {[%emt 0:01:15]} 17. Rfe1 {[%emt 0:01:02]} Qe5 {[%emt 0:03:16]} 18. Re3 {[%emt 0:03:43]} Qg7 {[%emt 0:01:19]} 19. Qxg7+ {[%emt 1:04:16]} 1/2-1/2

[Event "34rd NATO Championship 2024"]
[Site "Rhodes"]
[Date "2024.10.24"]
[Round "5.30"]
[White "Pirs, Matjaz"]
[Black "Middaugh, Jon S"]
[Result "1-0"]
[ECO "A24"]
[WhiteElo "2203"]
[BlackElo "1877"]
[Annotator "RC"]
[PlyCount "103"]
[EventDate "2024.09.18"]
[EventType "swiss"]
[EventCountry "GRE"]
[SourceTitle "playchess.com"]
[Source "ChessBase"]
[SourceQuality "1"]
[TimeControl "5400+30"]

1. c4 {[%emt 0:00:04]} Nf6 {[%emt 0:00:13]} 2. Nc3 {[%emt 0:00:26]} g6 {[%emt 0:00:48]} 3. g3 {[%emt 0:02:38]} Bg7 {[%emt 0:00:20]} 4. Bg2 {[%emt 0:00:11]} c6 {[%emt 0:01:05]} 5. e4 {[%emt 0:01:59]} e5 {[%emt 0:00:46]} 6. Nge2 {[%emt 0:01:11]} O-O {[%emt 0:01:04]} 7. O-O {[%emt 0:00:39]} d6 {[%emt 0:01:00]} 8. h3 {[%emt 0:01:35]} Be6 {[%emt 0:06:09]} 9. d3 {[%emt 0:02:58]} Ne8 {[%emt 0:03:54]} 10. Be3 {[%emt 0:09:39]} f5 {[%emt 0:01:22]} 11. Rc1 {[%emt 0:13:57]} Nd7 {[%emt 0:05:24]} 12. b3 {[%emt 0:01:36]} Qe7 {[%emt 0:02:44]} 13. d4 {[%emt 0:01:48]} Ndf6 {[%emt 0:12:35]} 14. exf5 {[%emt 0:10:53]} gxf5 {[%emt 0:01:02]} 15. dxe5 {[%emt 0:07:39]} dxe5 {[%emt 0:00:49]} 16. Na4 {[%emt 0:00:21]} Nd7 {[%emt 0:03:22]} 17. Qd2 {[%emt 0:02:13]} Rf7 {[%emt 0:03:34]} 18. Rfd1 {[%emt 0:02:46]} Qf8 {[%emt 0:05:15]} 19. f4 {[%emt 0:04:38]} e4 {[%emt 0:03:03]} 20. Nd4 {[%emt 0:00:24]} Qe7 {[%emt 0:01:32]} 21. Qf2 {[%emt 0:00:55]} Bxd4 {[%emt 0:03:46]} 22. Rxd4 {[%emt 0:01:01]} b6 {[%emt 0:02:05]} 23. Rcd1 {[%emt 0:02:12]} Ndf6 {[%emt 0:04:21]} 24. Kh2 {[%emt 0:01:54]} c5 {[%emt 0:04:06]} 25. R4d2 {[%emt 0:00:13]} Qc7 {[%emt 0:01:42]} 26. Nc3 {[%emt 0:00:40]} Rg7 {[%emt 0:03:58]} 27. Qe2 {[%emt 0:01:26]} h5 {[%emt 0:02:29]} 28. Nb5 {[%emt 0:02:26]} Qe7 {[%emt 0:01:20]} 29. Qf1 {[%emt 0:06:22]} Rc8 {[%emt 0:01:09]} 30. Qe1 {[%emt 0:00:57]} Rg6 {[%emt 0:02:12]} 31. Bf1 {[%emt 0:00:19]} Kf7 {[%emt 0:01:25]} 32. Bf2 {[%emt 0:02:49]} Kg7 {[%emt 0:00:31]} 33. Qe3 {[%emt 0:00:31]} Kh7 {[%emt 0:00:48]} 34. Qc3 {[%emt 0:01:50]} Qg7 {[%emt 0:00:37]} 35. Qe5 {[%emt 0:00:18]} Kh6 {[%emt 0:04:36]} 36. Rd8 {[%emt 0:02:39]} Rxd8 {[%emt 0:01:50]} 37. Rxd8 {[%emt 0:00:08]} Qe7 {[%emt 0:05:49]} 38. Rd1 {[%emt 0:01:49]} Qg7 {[%emt 0:00:55]} 39. Nd6 {[%emt 0:00:30]} Nxd6 {[%emt 0:02:42]} 40. Rxd6 {[%emt 0:00:11]} Nd7 {[%emt 0:00:43]} 41. Qxg7+ {[%emt 0:01:15]} Kxg7 {[%emt 0:00:04]} 42. Be2 {[%emt 0:00:49]} Kh6 {[%emt 0:01:14]} 43. Be3 {[%emt 0:00:17]} Nf8 {[%emt 0:02:44]} 44. g4 {[%emt 0:00:18]} hxg4 {[%emt 0:01:01]} 45. hxg4 {[%emt 0:00:05]} Kh7 {[%emt 0:01:31]} 46. g5 {[%emt 0:01:57]} Bd7 {[%emt 0:00:58]} 47. Rd1 {[%emt 0:00:27]} Rg7 {[%emt 0:01:12]} 48. Bc1 {[%emt 0:01:57]} Kg6 {[%emt 0:00:46]} 49. Kg3 {[%emt 0:03:22]} Re7 {[%emt 0:00:37]} 50. Bb2 {[%emt 0:01:56]} Re6 {[%emt 0:01:18]} 51. Be5 {[%emt 0:00:12]} Nh7 {[%emt 0:00:44]} 52. Rxd7 {[%emt 0:00:09]} 1-0

[Event "34rd NATO Championship 2024"]
[Site "Rhodes"]
[Date "2024.10.24"]
[Round "5.32"]
[White "Papler, Peter"]
[Black "Lebrun, Roger"]
[Result "1/2-1/2"]
[ECO "A00"]
[WhiteElo "1780"]
[BlackElo "1984"]
[Annotator "RC"]
[PlyCount "76"]
[EventDate "2024.09.18"]
[EventType "swiss"]
[EventCountry "GRE"]
[SourceTitle "playchess.com"]
[Source "ChessBase"]
[SourceQuality "1"]
[TimeControl "5400+30"]

1. d3 {[%emt 0:00:04]} g6 {[%emt 0:00:44]} 2. Nf3 {[%emt 0:00:08]} Bg7 {[%emt 0:00:09]} 3. c3 {[%emt 0:00:14]} Nf6 {[%emt 0:00:33]} 4. e4 {[%emt 0:00:15]} d6 {[%emt 0:00:10]} 5. Be2 {[%emt 0:01:01]} O-O {[%emt 0:00:58]} 6. Qc2 {[%emt 0:00:40]} e5 {[%emt 0:00:42]} 7. O-O {[%emt 0:01:24]} Nc6 {[%emt 0:02:32]} 8. Nbd2 {[%emt 0:00:26]} Nh5 {[%emt 0:04:01]} 9. Re1 {[%emt 0:01:46]} Nf4 {[%emt 0:00:39]} 10. Bf1 {[%emt 0:00:33]} h6 {[%emt 0:03:33]} 11. Nc4 {[%emt 0:03:10]} g5 {[%emt 0:06:10]} 12. Be3 {[%emt 0:08:41]} b5 {[%emt 0:06:52]} 13. Na3 {[%emt 0:00:30]} a6 {[%emt 0:00:12]} 14. Rad1 {[%emt 0:02:14]} Qf6 {[%emt 1:10:15]} 15. d4 {[%emt 0:05:57]} g4 {[%emt 0:00:00]} 16. dxe5 {[%emt 0:02:02]} dxe5 {[%emt 0:00:00]} 17. Nd2 {[%emt 0:00:30]} h5 {[%emt 0:00:00]} 18. Nb3 {[%emt 0:01:34]} Ne6 {[%emt 0:00:00]} 19. Qc1 {[%emt 0:05:54]} Kh7 {[%emt 0:00:00]} 20. Nc2 {[%emt 0:01:26]} Qg6 {[%emt 0:00:00]} 21. Nc5 {[%emt 0:07:42]} Nxc5 {[%emt 0:00:00]} 22. Bxc5 {[%emt 0:00:13]} Re8 {[%emt 0:00:00]} 23. Ne3 {[%emt 0:01:06]} Bh6 {[%emt 0:00:00]} 24. Qc2 {[%emt 0:00:25]} Bxe3 {[%emt 0:00:00]} 25. Bxe3 {[%emt 0:00:19]} Be6 {[%emt 0:00:00]} 26. b3 {[%emt 0:04:48]} h4 {[%emt 0:00:00]} 27. Bc1 {[%emt 0:02:03]} f5 {[%emt 0:00:00]} 28. exf5 {[%emt 0:02:01]} Bxf5 {[%emt 0:00:00]} 29. Qe2 {[%emt 0:01:50]} Rg8 {[%emt 0:00:00]} 30. Qe3 {[%emt 0:02:52]} Rad8 {[%emt 0:00:00]} 31. Rxd8 {[%emt 0:05:36]} Rxd8 {[%emt 0:00:00]} 32. Bb2 {[%emt 0:01:12]} Qh6 {[%emt 0:00:00]} 33. Qxh6+ {[%emt 0:06:22]} Kxh6 {[%emt 0:00:00]} 34. c4 {[%emt 0:00:06]} bxc4 {[%emt 0:00:00]} 35. Bxc4 {[%emt 0:00:21]} Kg6 {[%emt 0:00:00]} 36. Bc3 {[%emt 0:02:10]} Bd3 {[%emt 0:00:00]} 37. Be6 {[%emt 0:03:43]} Bf5 {[%emt 0:00:34]} 38. Bc4 {[%emt 0:00:39]} Bd3 {[%emt 0:00:11]} 1/2-1/2